bitfinex/quotes_ETHUSD_20260214
["timestamp","ask_amount","ask_price","bid_price","bid_amount"]
[1771075425762,0.0011,2070.9,2070.1,1.48180161]
[1771075426373,0.0011,2070.9,2070.3,1.48180161]
[1771075427290,0.0011,2071.3,2070.5,1.48180161]
[1771075427696,0.0011,2071.3,2070.7,1.48180161]
[1771075427899,0.0011,2071.3,2070.8,1.48180161]
[1771075428272,0.0011,2071.4,2070.9,1.20720459]
[1771075428588,0.0011,2071.4,2070.9,2.6890062]
[1771075428966,0.0011,2071.4,2071.0,1.48180161]
[1771075429988,0.0011,2071.6,2071.0,1.48180161]
[1771075430395,0.0011,2071.6,2071.1,1.20708802]
[1771075430597,0.0011,2071.6,2071.1,2.68888963]
[1771075430777,0.0011,2071.8,2071.1,2.68888963]
[1771075430969,0.0011,2071.8,2071.1,1.20708802]
[1771075432197,0.0011,2071.8,2071.0,1.20710339]
[1771075432397,1.52074148,2071.6,2070.7,1.2072835]
[1771075433501,1.52074148,2071.6,2070.4,4.82981427]
[1771075433703,1.52074148,2071.6,2070.5,1.20739622]
[1771075434590,1.52074148,2071.6,2070.4,1.20749613]
[1771075434591,2.72759641,2071.5,2070.4,1.20749613]
[1771075434782,1.52074148,2071.4,2070.4,1.20749613]
[1771075435187,1.52074148,2071.4,2070.8,0.001]
[1771075436610,1.20697146,2071.3,2070.8,0.001]
[1771075436900,1.52074148,2071.3,2070.8,0.001]
[1771075437095,1.20694158,2071.4,2070.8,0.001]
[1771075437498,2.72768306,2071.4,2070.8,0.001]
[1771075438781,1.52074148,2071.3,2070.8,0.001]
[1771075439394,4.82743034,2071.5,2070.8,0.001]
[1771075439395,6.34817182,2071.5,2070.8,0.001]
[1771075439706,2.72759641,2071.5,2070.8,0.001]
[1771075440505,1.20678114,2071.7,2070.8,0.001]
[1771075440814,1.52074148,2071.6,2070.8,0.001]
[1771075443299,1.20685493,2071.5,2070.8,0.001]
[1771075443708,1.20673842,2071.7,2070.8,1.43368695]
[1771075444202,0.0011,2071.8,2070.8,1.43368695]
[1771075444885,0.0011,2071.8,2070.9,1.493]
[1771075445095,0.0011,2071.8,2071.0,1.43268695]
[1771075445337,0.0011,2071.8,2071.1,1.20708802]
[1771075446331,0.0011,2071.8,2070.9,1.493]
[1771075446609,0.0011,2071.8,2070.9,1.20716803]
[1771075447116,1.48835018,2071.8,2070.9,1.20716803]
[1771075447636,1.20673842,2071.7,2070.8,4.82995854]
[1771075447793,1.48725018,2071.6,2070.8,0.001]
[1771075449807,1.48725018,2071.4,2070.8,0.001]
[1771075451313,2.89225018,2071.4,2070.8,0.001]
[1771075452022,1.20697146,2071.3,2070.8,0.001]
[1771075452723,2.61195043,2071.4,2070.8,0.001]
[1771075452923,4.09920061,2071.4,2070.8,0.001]
[1771075453420,1.48725018,2071.3,2070.6,0.001]
[1771075454022,2.61195043,2071.4,2070.6,0.001]
[1771075455819,2.61195043,2071.4,2070.6,1.43368695]
[1771075456026,1.20695043,2071.4,2070.6,0.001]
[1771075456327,4.82749714,2071.5,2070.6,0.001]
[1771075458438,1.48725018,2071.6,2070.6,0.001]
[1771075459442,1.48725018,2071.6,2070.2,0.001]
[1771075459725,1.48725018,2071.4,2070.2,0.001]
[1771075459932,1.48725018,2071.2,2070.2,0.001]
[1771075460530,1.48725018,2071.0,2070.2,0.001]
[1771075462617,1.20720459,2070.9,2070.2,0.001]
[1771075465838,2.69443342,2071.0,2070.2,0.001]
[1771075466841,1.20718324,2071.0,2070.2,1.43368695]
[1771075467013,4.82812513,2071.2,2070.2,2.64125532]
[1771075467334,1.20702974,2071.2,2070.3,1.43268695]
[1771075468427,2.69427992,2071.2,2070.3,1.43268695]
[1771075469542,1.20702974,2071.2,2070.4,1.20749613]
[1771075470035,1.20702974,2071.2,2070.4,2.64018308]
[1771075471026,1.20702974,2071.2,2070.5,1.43268695]
[1771075471719,3.47901545,2071.3,2070.5,2.6400989]
[1771075472220,3.47901545,2071.3,2070.6,1.51889019]
[1771075473642,2.61001545,2071.3,2070.6,2.72624191]
[1771075473936,2.61001545,2071.3,2070.6,1.20735172]
[1771075474142,2.61001545,2071.3,2070.5,1.20740258]
[1771075474622,2.61001545,2071.3,2070.5,2.72629277]
[1771075476754,2.60997192,2071.3,2070.5,2.72629277]
[1771075478226,2.60997922,2071.3,2070.5,2.72629277]
[1771075478529,1.403,2071.3,2070.6,1.51889019]
[1771075478719,2.60997247,2071.3,2070.6,1.51889019]
[1771075480329,2.60997247,2071.3,2070.7,2.72621138]
[1771075480539,1.403,2071.3,2070.7,2.72621138]
[1771075480739,2.60997672,2071.3,2070.7,2.72621138]
[1771075480931,1.403,2071.3,2070.7,2.72621138]
[1771075481550,2.60998108,2071.3,2070.7,2.72621138]
[1771075481760,1.403,2071.3,2070.7,2.72621138]
[1771075482247,2.60997918,2071.3,2070.7,2.72621138]
[1771075482748,1.403,2071.3,2070.7,2.72621138]
[1771075482950,2.60997704,2071.3,2070.7,2.72621138]
[1771075483150,1.403,2071.3,2070.7,2.72621138]
[1771075483464,1.20697031,2071.4,2070.8,1.39541619]
[1771075483626,0.0011,2071.5,2070.8,1.39541619]
[1771075483823,1.20795653,2071.5,2070.8,1.39541619]
[1771075484024,0.0011,2071.5,2070.8,1.39541619]
[1771075484335,0.0011,2071.5,2070.9,2.60262078]
[1771075484541,0.0011,2071.7,2071.0,1.39541619]
[1771075486456,0.0011,2071.7,2071.1,1.20708802]
[1771075486761,0.0011,2071.7,2071.2,1.39541619]
[1771075487152,0.0011,2071.7,2071.2,1.466]
[1771075487326,0.0011,2071.7,2071.3,1.39541619]
[1771075488544,0.0011,2071.7,2071.4,1.20691319]
[1771075488854,0.0011,2071.9,2071.4,2.60232938]
[1771075491335,0.0011,2071.9,2071.3,1.20694389]
[1771075491659,0.0011,2071.9,2071.3,2.60236008]
[1771075492026,0.0011,2072.0,2071.4,1.39541619]
[1771075492248,0.0011,2072.0,2071.5,1.468]
[1771075492559,0.0011,2072.2,2071.7,1.20673842]
[1771075493934,0.0011,2072.2,2071.7,2.60215461]
[1771075494862,0.0011,2072.2,2071.0,4.82848788]
[1771075494863,1.47912679,2072.2,2071.3,6.22327308]
[1771075495161,1.47912679,2072.2,2071.4,1.468]
[1771075495660,1.47912679,2072.2,2071.1,1.39541619]
[1771075495861,1.47912679,2072.2,2071.2,1.405]
[1771075496065,1.47912679,2072.2,2071.2,2.80041619]
[1771075496565,1.47912679,2072.2,2071.0,1.39541619]
[1771075496861,1.47912679,2072.2,2071.2,1.468]
[1771075497054,1.47802679,2072.0,2071.3,1.20697146]
[1771075497364,1.47802679,2072.0,2071.2,2.67500416]
[1771075499565,1.20662194,2071.9,2071.2,4.07042035]
[1771075500637,1.20662194,2071.9,2071.3,1.39541619]
[1771075500837,1.20662194,2071.9,2071.2,1.20700416]
[1771075501037,1.20662194,2071.9,2071.2,2.67300416]
[1771075501760,1.34717973,2072.0,2071.0,1.20712094]
[1771075502068,1.34717973,2072.0,2071.0,2.53935211]
[1771075502268,1.34717973,2072.0,2071.0,1.20712094]
[1771075502883,1.34717973,2072.0,2071.0,2.53935211]
[1771075503153,1.382,2072.1,2071.1,1.33223117]
[1771075505871,1.2065637,2072.0,2071.2,1.20702974]
[1771075506171,2.58855123,2072.1,2071.3,1.33223117]
[1771075507054,1.382,2072.1,2071.3,1.33223117]
[1771075507437,2.58850986,2072.1,2071.3,1.33223117]
[1771075507638,1.20650986,2072.1,2071.5,1.33223117]
[1771075507870,0.0011,2072.2,2071.6,1.20679667]
[1771075509472,0.0011,2072.2,2071.7,1.33223117]
[1771075510451,0.0011,2072.2,2071.8,2.53891135]
[1771075511972,0.0011,2072.2,2071.9,1.33223117]
[1771075512898,0.0011,2072.2,2072.0,1.2065637]
[1771075513580,0.0011,2072.3,2072.0,1.2065637]
[1771075515973,0.0011,2072.5,2072.1,1.33223117]
[1771075516276,0.0011,2072.5,2072.2,2.80123117]
[1771075516771,0.0011,2072.5,2072.3,1.20638903]
[1771075516971,0.0011,2072.5,2072.2,4.00763555]
[1771075517473,0.0011,2072.7,2072.3,1.33223117]
[1771075518072,0.0011,2072.7,2072.2,1.469]
[1771075518279,0.0011,2072.7,2072.2,2.67544339]
[1771075518649,0.0011,2072.7,2072.2,4.00767456]
[1771075521385,0.0011,2072.7,2072.2,2.80123117]
[1771075521758,0.0011,2072.7,2072.2,4.00767112]
[1771075522677,0.0011,2072.7,2072.2,1.469]
[1771075523559,0.0011,2072.7,2072.2,2.6754428]
[1771075524474,2.55443595,2072.7,2071.9,1.33223117]
[1771075524678,1.34717973,2072.6,2072.0,1.474]
[1771075525408,1.34717973,2072.6,2071.7,1.20673473]
[1771075525559,1.34717973,2072.6,2071.7,1.474]
[1771075525761,1.34717973,2072.6,2071.6,1.474]
[1771075525954,1.34717973,2072.6,2071.6,2.80623117]
[1771075526676,1.34717973,2072.4,2071.6,2.80623117]
[1771075526871,1.34717973,2072.4,2071.9,0.001]
[1771075528567,2.55356876,2072.3,2071.9,0.001]
[1771075528769,1.34717973,2072.2,2071.9,0.001]
[1771075529180,1.20638903,2072.3,2071.9,0.001]
[1771075529381,2.55356876,2072.3,2071.9,0.001]
[1771075535687,1.36369318,2072.2,2071.9,0.001]
[1771075537798,1.20650547,2072.1,2071.9,0.001]
[1771075538794,2.57019865,2072.1,2071.9,0.001]
[1771075539000,1.36369318,2072.0,2071.7,0.001]
[1771075539203,1.36369318,2072.0,2071.6,0.001]
[1771075540199,1.20662194,2071.9,2071.6,0.001]
[1771075541173,2.49797364,2071.9,2071.6,0.001]
[1771075541373,1.20662194,2071.9,2071.6,0.001]
[1771075541569,1.2913517,2071.8,2071.6,0.001]
[1771075541802,1.2913517,2071.7,2071.4,0.001]
[1771075541998,1.2913517,2071.7,2071.3,0.001]
[1771075542301,1.20679667,2071.6,2071.0,0.001]
[1771075542678,2.49814837,2071.6,2071.0,0.001]
[1771075543003,1.20679667,2071.6,2071.0,0.001]
[1771075544206,2.49814837,2071.6,2071.0,0.001]
[1771075544507,1.2913517,2071.4,2070.9,0.001]
[1771075545280,1.2913517,2071.4,2070.7,0.001]
[1771075546405,2.49832316,2071.3,2070.7,0.001]
[1771075546703,1.20697146,2071.3,2070.8,1.28481564]
[1771075547274,1.20697146,2071.3,2070.8,0.001]
[1771075547779,1.20697146,2071.3,2070.8,1.28481564]
[1771075548375,2.59885925,2071.5,2071.0,1.28381564]
[1771075548575,1.2913517,2071.4,2070.8,0.001]
[1771075550475,1.20697146,2071.3,2070.8,0.001]
[1771075551385,1.20692522,2071.4,2070.8,1.28481564]
[1771075551980,2.59888972,2071.5,2070.8,1.28481564]
[1771075552509,2.59888972,2071.5,2071.0,1.28381564]
[1771075552510,1.392,2071.5,2071.0,1.28381564]
[1771075553013,2.59886543,2071.5,2071.0,1.28381564]
[1771075553706,1.20686543,2071.5,2071.0,1.28381564]
[1771075554603,1.20673842,2071.7,2071.0,2.49094878]
[1771075554794,1.20673842,2071.7,2071.0,2.49094229]
[1771075555913,1.20673842,2071.7,2071.1,1.28381564]
[1771075556411,2.6017179,2071.8,2071.1,1.28381564]
[1771075557191,1.2066671,2071.9,2071.3,1.28381564]
[1771075560395,4.82637835,2072.0,2071.3,2.49073854]
[1771075560596,4.82637835,2072.0,2071.3,1.28381564]
[1771075561189,1.31596287,2071.9,2071.1,1.35972744]
[1771075561600,1.31596287,2071.9,2071.0,1.457]
[1771075561881,1.31596287,2071.9,2070.8,0.001]
[1771075562488,2.52275954,2071.6,2070.8,0.001]
[1771075562689,3.92075954,2071.6,2070.8,0.001]
[1771075563095,1.31596287,2071.5,2070.8,0.001]
[1771075563814,2.60479667,2071.6,2070.8,1.36072744]
[1771075564713,2.60479667,2071.6,2070.9,1.20720459]
[1771075564917,2.60479667,2071.6,2071.0,1.35972744]
[1771075565922,1.20679667,2071.6,2071.0,1.35972744]
[1771075566786,1.20668018,2071.8,2071.0,2.56683097]
[1771075567004,1.20650547,2072.1,2071.2,1.35972744]
[1771075567215,1.31596287,2072.0,2071.2,1.35972744]
[1771075567529,1.31596287,2072.0,2071.0,1.35972744]
[1771075567712,1.31596287,2071.8,2071.0,4.02187056]
[1771075568095,1.31596287,2071.8,2071.1,1.35972744]
[1771075568515,2.499,2071.9,2071.1,1.35972744]
[1771075568819,3.81496287,2071.9,2071.1,1.35972744]
[1771075569833,1.20668018,2071.8,2071.3,1.35972744]
[1771075570432,3.70566273,2071.9,2071.3,1.35972744]
[1771075571134,2.60566273,2071.9,2071.3,1.35972744]
[1771075571631,1.20654025,2072.1,2071.3,1.35972744]
[1771075572007,4.82689231,2072.2,2071.4,1.20691319]
[1771075572207,1.20754725,2072.2,2071.5,1.35972744]
[1771075574333,1.20754725,2072.2,2071.5,2.56657649]
[1771075574635,1.20754725,2072.2,2071.5,1.35972744]
[1771075575131,2.52351012,2072.2,2071.5,1.35972744]
[1771075575640,2.52351012,2072.2,2071.5,2.56657491]
[1771075575811,2.52351012,2072.2,2071.5,1.35972744]
[1771075576142,1.31596287,2072.1,2071.2,1.35972744]
[1771075576313,2.52252657,2072.0,2071.2,2.56672301]
[1771075576643,1.2065637,2072.0,2071.3,1.35972744]
[1771075578945,1.2065637,2072.0,2071.3,2.56666363]
[1771075579441,2.52252657,2072.0,2071.3,1.35972744]
[1771075579620,1.2065637,2072.0,2071.4,1.35972744]
[1771075582924,4.82625482,2072.1,2071.4,2.56659639]
[1771075586443,4.82625482,2072.1,2071.5,1.35972744]
[1771075587528,4.82625482,2072.1,2071.5,2.56657996]
[1771075588038,1.20650547,2072.1,2071.5,2.56657996]
[1771075588422,1.20650547,2072.1,2071.6,1.35972744]
[1771075590128,1.20650547,2072.1,2071.6,2.56649962]
[1771075590442,6.14299781,2072.2,2071.7,1.35972744]
[1771075590443,1.20754867,2072.2,2071.7,1.35972744]
[1771075592743,0.0011,2072.2,2071.7,2.56643118]
[1771075592936,0.0011,2072.2,2071.7,1.35972744]
[1771075593121,0.0011,2072.2,2071.7,2.56646518]
[1771075595463,0.0011,2072.2,2071.7,1.35972744]
[1771075596522,1.30352963,2072.2,2071.0,4.8281226]
[1771075596732,1.30352963,2072.2,2071.3,1.25423796]
[1771075599052,1.30352963,2072.2,2071.4,1.20691319]
[1771075599351,2.51001848,2072.2,2071.5,2.70923796]
[1771075600125,2.51001848,2072.2,2071.6,1.25423796]
[1771075600526,1.22943296,2072.1,2071.5,1.455]
[1771075601234,1.20655006,2072.1,2071.5,2.43675561]
[1771075601438,1.20655006,2072.1,2071.5,3.89175561]
[1771075602253,1.20655006,2072.1,2071.6,1.22994299]
[1771075602429,1.23053296,2072.2,2071.6,1.22994299]
[1771075602634,1.20755716,2072.2,2071.6,1.22994299]
[1771075604030,1.20755118,2072.2,2071.8,1.22994299]
[1771075605354,0.0011,2072.2,2071.8,1.22994299]
[1771075605556,1.20755289,2072.2,2071.6,2.43669953]
[1771075606248,1.20755289,2072.2,2071.7,1.22994299]
[1771075607165,0.0011,2072.2,2071.7,1.22994299]
[1771075608263,0.0011,2072.2,2071.9,1.22994299]
[1771075609255,0.0011,2072.2,2071.9,2.68894299]
[1771075611439,0.0011,2072.2,2071.9,3.89556328]
[1771075613963,0.0011,2072.2,2071.9,2.66562029]
[1771075614167,0.0011,2072.4,2072.0,1.22994299]
[1771075614368,0.0011,2072.4,2071.8,1.22994299]
[1771075614369,1.23053296,2072.4,2071.8,1.22994299]
[1771075614544,1.23053296,2072.4,2071.9,1.463]
[1771075615244,1.20638903,2072.3,2071.9,1.463]
[1771075615436,1.22943296,2072.2,2071.7,1.463]
[1771075617470,1.20650547,2072.1,2071.7,1.463]
[1771075617861,1.20650547,2072.1,2071.2,2.43694171]
[1771075617862,1.22943296,2072.0,2071.2,2.43694171]
[1771075618048,1.22943296,2072.0,2071.2,1.22994299]
[1771075619549,1.22943296,2071.8,2071.1,1.463]
[1771075621440,0.9360549,2071.9,2071.2,1.25802496]
[1771075621739,1.412,2072.2,2071.3,1.25802496]
[1771075621740,3.5674048,2072.2,2071.3,1.25802496]
[1771075622161,1.412,2072.2,2071.5,1.25802496]
[1771075622366,1.412,2072.2,2071.6,1.25802496]
[1771075622560,0.0011,2072.4,2071.7,1.25802496]
[1771075622953,1.2074339,2072.4,2071.7,1.25802496]
[1771075623259,0.0011,2072.4,2071.7,1.25802496]
[1771075623846,0.0011,2072.4,2071.8,1.20668018]
[1771075624042,0.0011,2072.4,2071.9,1.25802496]
[1771075624466,0.0011,2072.4,2071.9,2.72002496]
[1771075625575,0.0011,2072.4,2071.9,1.462]
[1771075625777,6.69700083,2072.2,2071.5,3.92787758]
[1771075626071,1.20650547,2072.1,2071.5,3.92787758]
[1771075627150,2.18853421,2072.1,2071.3,2.46495981]
[1771075627350,2.18853421,2072.1,2071.3,3.92795981]
[1771075627660,2.18853421,2072.1,2071.3,2.72102496]
[1771075628262,2.18853421,2072.1,2071.3,3.92799553]
[1771075628986,2.61849345,2072.2,2071.4,1.25802496]
[1771075629948,2.61849345,2072.2,2071.6,1.25802496]
[1771075630458,2.61845243,2072.2,2071.6,1.25802496]
[1771075630648,1.412,2072.2,2071.6,1.25802496]
[1771075630846,2.61845197,2072.2,2071.6,1.25802496]
[1771075631045,1.412,2072.2,2071.6,1.25802496]
[1771075631480,1.20642427,2072.3,2071.6,1.25802496]
[1771075631677,1.20748741,2072.4,2071.6,1.25802496]
[1771075632175,0.0011,2072.4,2071.8,1.25802496]
[1771075632573,0.0011,2072.4,2071.7,1.20673842]
[1771075634964,0.0011,2072.4,2071.8,1.25802496]
[1771075636395,0.0011,2072.4,2071.9,2.4646469]
[1771075636548,0.0011,2072.4,2072.0,1.25802496]
[1771075637283,0.96343728,2072.4,2071.8,1.463]
[1771075637455,0.0011,2072.4,2071.8,1.463]
[1771075637655,0.0011,2072.4,2071.8,2.72102496]
[1771075637955,0.0011,2072.4,2071.8,3.92770284]
[1771075638155,0.0011,2072.4,2071.9,1.25802496]
[1771075638470,0.0011,2072.4,2072.0,2.46458866]
[1771075638700,0.0011,2072.7,2072.2,1.25802496]
[1771075638865,1.20725766,2072.7,2072.2,1.25802496]
[1771075639397,0.0011,2072.7,2072.2,1.25802496]
[1771075639883,1.20725841,2072.7,2072.2,1.25802496]
[1771075640260,0.0011,2072.7,2072.2,1.25802496]
[1771075640770,0.0011,2072.7,2072.2,2.46446894]
[1771075641876,0.0011,2072.7,2072.2,0.96446894]
[1771075642076,0.0011,2072.7,2072.3,1.25802496]
[1771075642383,0.0011,2072.7,2071.9,2.4646469]
[1771075642563,0.0011,2072.7,2072.0,1.25802496]
[1771075642970,0.0011,2072.7,2072.1,1.20650547]
[1771075643685,0.0011,2072.7,2072.1,2.66950547]
[1771075644559,0.0011,2072.7,2071.9,1.20659634]
[1771075644560,1.25436139,2072.7,2071.9,1.20659634]
[1771075644763,1.25436139,2072.7,2071.9,1.464]
[1771075644969,1.20621441,2072.6,2071.9,3.92862858]
[1771075646184,2.4594758,2072.6,2071.9,2.72202496]
[1771075646383,2.4594758,2072.6,2071.9,3.92864425]
[1771075647173,2.4594758,2072.6,2071.9,2.72202496]
[1771075647463,2.4594758,2072.6,2071.9,3.92863357]
[1771075651592,2.45948699,2072.6,2071.9,3.92863357]
[1771075651771,2.45948699,2072.6,2071.9,3.43063362]
[1771075653915,1.2143442,2072.5,2071.9,2.67262163]
[1771075654203,1.2143442,2072.5,2071.9,3.98231788]
[1771075655001,1.2154442,2072.7,2071.9,3.98231788]
[1771075657193,1.20621441,2072.6,2072.0,1.30969625]
[1771075657498,2.42055861,2072.6,2071.9,3.98231788]
[1771075659703,2.42055861,2072.6,2072.0,1.30969625]
[1771075660201,1.20621441,2072.6,2072.0,1.30969625]
[1771075661601,1.20621441,2072.6,2072.0,2.51622974]
[1771075667901,1.22431643,2072.5,2071.9,1.466]
[1771075668786,1.22431643,2072.5,2071.9,2.67262115]
[1771075669600,1.22431643,2072.5,2071.9,3.9332554]
[1771075670208,1.20633082,2072.4,2071.9,3.9332554]
[1771075670379,1.20630436,2072.5,2072.0,1.26063425]
[1771075670580,1.20625742,2072.6,2072.0,1.26063425]
[1771075671211,1.22431643,2072.5,2071.8,1.20765495]
[1771075671514,1.22431643,2072.5,2071.9,1.26063425]
[1771075671713,1.20625742,2072.6,2071.9,1.26063425]
[1771075672010,1.22431643,2072.5,2071.9,1.26063425]
[1771075672401,1.4201,2072.7,2071.9,1.26063425]
[1771075672604,1.22431643,2072.5,2071.9,1.26063425]
[1771075673707,1.22431643,2072.5,2071.8,0.001]
[1771075674016,1.22431643,2072.5,2071.9,1.473]
[1771075674520,1.20633082,2072.4,2071.9,1.473]
[1771075675016,2.43064725,2072.4,2071.9,1.473]
[1771075676794,1.22431643,2072.3,2071.8,1.475]
[1771075677203,1.22431643,2072.3,2071.8,2.68167993]
[1771075678793,2.43073376,2072.3,2071.8,2.68167993]
[1771075678992,2.43073376,2072.3,2071.8,2.68168008]
[1771075679520,2.43073376,2072.3,2071.8,1.475]
[1771075679714,2.43073376,2072.3,2071.8,2.68167606]
[1771075680197,2.43073376,2072.3,2071.8,1.475]
[1771075680525,2.43073376,2072.3,2071.8,2.6826793]
[1771075681405,2.43073376,2072.3,2071.8,1.476]
[1771075682324,1.24223237,2072.2,2071.8,0.001]
[1771075682635,1.20641733,2072.3,2071.8,0.001]
[1771075682833,1.20637479,2072.4,2071.9,1.22964287]
[1771075683342,2.44860716,2072.4,2071.9,1.476]
[1771075686545,1.24223237,2072.3,2071.8,1.477]
[1771075686915,1.24223237,2072.3,2071.6,2.41240457]
[1771075688156,1.24223237,2072.3,2071.6,3.88840457]
[1771075688306,1.20644725,2072.2,2071.6,3.88840457]
[1771075688726,2.44867962,2072.2,2071.6,3.88840457]
[1771075688923,2.44867962,2072.2,2071.6,1.476]
[1771075688924,1.24223237,2072.1,2071.6,1.476]
[1771075689222,1.24223237,2072.1,2071.5,1.23064287]
[1771075689426,1.24223237,2072.1,2071.5,0.001]
[1771075690651,1.24223237,2071.9,2071.5,0.001]
[1771075692438,1.24223237,2071.7,2071.5,0.001]
[1771075692850,2.44891255,2071.8,2071.5,0.001]
[1771075693220,1.24223237,2071.7,2071.5,0.001]
[1771075693420,1.20668018,2071.8,2071.5,0.001]
[1771075694023,2.44889896,2071.9,2071.5,0.001]
[1771075694647,1.24223237,2072.1,2071.5,0.001]
[1771075694846,1.20638903,2072.3,2071.5,1.23064287]
[1771075696223,1.24223237,2072.2,2071.5,0.001]
[1771075696527,1.24223237,2072.2,2071.5,1.23064287]
[1771075696936,1.20638903,2072.3,2071.6,1.22964287]
[1771075697733,1.20638903,2072.3,2071.5,1.20781665]
[1771075697734,1.24223237,2072.2,2071.5,0.001]
[1771075697948,1.24223237,2072.0,2071.5,0.001]
[1771075698436,1.24223237,2071.9,2071.5,0.001]
[1771075698838,1.24223237,2071.8,2071.5,0.001]
[1771075699043,1.20673842,2071.7,2071.5,0.001]
[1771075699221,1.20673842,2071.7,2071.4,0.001]
[1771075699623,2.44897079,2071.7,2071.4,0.001]
[1771075699929,2.44897079,2071.7,2071.1,0.001]
[1771075699930,1.24223237,2071.6,2071.1,0.001]
[1771075700963,1.20685493,2071.5,2071.1,0.001]
[1771075701629,2.4490873,2071.5,2071.1,0.001]
[1771075702157,1.24223237,2071.4,2071.0,0.001]
[1771075702366,1.24223237,2071.4,2070.9,0.001]
[1771075702925,1.20697146,2071.3,2070.9,0.001]
[1771075704393,2.44920383,2071.3,2070.9,0.001]
[1771075704558,1.20697146,2071.3,2070.9,0.001]
[1771075705685,1.24223237,2071.2,2070.9,0.001]
[1771075706189,1.24223237,2071.0,2070.2,0.001]
[1771075706389,6.95479344,2070.7,2069.9,0.001]
[1771075706590,1.24223237,2070.6,2069.9,0.001]
[1771075706791,1.24223237,2070.5,2069.9,0.001]
[1771075707352,1.20749613,2070.4,2069.9,0.001]
[1771075707889,2.4497285,2070.4,2069.9,0.001]
[1771075709304,1.20749613,2070.4,2069.9,0.001]
[1771075709596,1.24223237,2070.0,2069.6,0.001]
[1771075709889,1.24223237,2069.8,2068.8,2.43803982]
[1771075710094,1.24223237,2069.8,2068.9,1.22964287]
[1771075710385,1.24223237,2069.8,2069.4,0.001]
[1771075711854,5.20157106,2070.5,2069.4,0.001]
[1771075711855,1.20767112,2070.1,2069.4,0.001]
[1771075712058,2.65267112,2070.1,2069.4,0.001]
[1771075712378,3.83052755,2070.1,2069.4,0.001]
[1771075713195,2.62285643,2070.1,2069.4,0.001]
[1771075713790,1.20772946,2070.0,2069.4,0.001]
[1771075713990,3.83057005,2070.1,2069.4,0.001]
[1771075714367,1.17785643,2070.0,2069.4,0.001]
[1771075715773,1.20778781,2069.9,2069.4,0.001]
[1771075715975,1.2077732,2070.0,2069.4,0.001]
[1771075716472,2.6537732,2070.0,2069.4,0.001]
[1771075717388,3.83162963,2070.0,2069.4,0.001]
[1771075717691,2.65373341,2070.0,2069.4,0.001]
[1771075717882,1.20773341,2070.0,2069.4,0.001]
[1771075719087,2.38558984,2070.0,2069.4,0.001]
[1771075719289,1.20773341,2070.0,2069.4,0.001]
[1771075720506,1.20765056,2070.2,2069.4,1.19226619]
[1771075720811,2.65565056,2070.2,2069.6,1.19126619]
[1771075722711,1.57917187,2070.5,2069.6,1.19126619]
[1771075722897,1.57917187,2070.5,2069.7,1.19126619]
[1771075723122,0.37167863,2070.5,2069.7,1.19126619]
[1771075723289,0.0011,2070.3,2069.7,1.19126619]
[1771075723479,0.0011,2070.3,2069.9,1.19126619]
[1771075723825,0.0011,2070.3,2069.6,1.23276159]
[1771075723826,1.20730685,2070.8,2069.8,1.19126619]
[1771075723991,0.0011,2070.5,2070.0,1.19126619]
[1771075724178,0.0011,2070.5,2070.1,1.19126619]
[1771075726192,0.0011,2070.5,2069.9,2.3990103]
[1771075726589,0.0011,2070.5,2070.0,1.19126619]
[1771075726789,0.0011,2070.5,2069.8,4.8313844]
[1771075726790,0.0011,2070.5,2069.8,1.20779451]
[1771075727102,0.0011,2070.5,2069.8,2.3990607]
[1771075727610,1.23680791,2070.5,2069.7,3.85814022]
[1771075727783,0.0011,2070.5,2069.7,3.85814022]
[1771075728310,0.0011,2070.5,2069.8,1.19126619]
[1771075728612,1.23680791,2070.5,2069.7,1.459]
[1771075730110,1.23680791,2070.5,2069.4,6.22031505]
[1771075730282,1.23570791,2070.3,2069.4,1.19226619]
[1771075730688,1.23570791,2070.3,2069.4,0.001]
[1771075731007,1.23570791,2070.3,2069.5,1.19126619]
[1771075731307,1.23570791,2070.3,2069.4,0.001]
[1771075732233,1.23570791,2070.3,2069.1,0.001]
[1771075732234,1.23570791,2070.1,2069.1,0.001]
[1771075733621,1.23570791,2070.1,2069.1,1.19226619]
[1771075733831,1.444,2070.0,2069.1,1.19226619]
[1771075734501,1.20778781,2069.9,2069.2,2.39946259]
[1771075734701,1.20778781,2069.9,2069.2,1.19126619]
[1771075736504,4.83115126,2070.0,2069.2,2.39941085]
[1771075736707,4.83115126,2070.0,2069.3,1.19126619]
[1771075737734,6.06588001,2070.4,2069.3,1.19126619]
[1771075738030,1.444,2070.3,2069.3,1.19126619]
[1771075738396,6.06588001,2070.4,2069.4,1.19126619]
[1771075738630,6.06588001,2070.4,2069.5,1.19126619]
[1771075741304,1.14844465,2070.3,2069.5,1.19126619]
[1771075741723,1.14844465,2070.3,2069.3,3.89385637]
[1771075741905,1.14844465,2070.3,2069.3,1.456]
[1771075742908,1.14844465,2070.1,2069.3,1.456]
[1771075744334,0.99844465,2070.1,2069.3,1.456]
[1771075744528,0.99844465,2070.1,2069.3,2.66413788]
[1771075744733,0.99844465,2070.1,2069.3,1.456]
[1771075744900,0.99844465,2070.1,2069.3,2.68574935]
[1771075746614,1.20772946,2070.0,2069.3,2.68574935]
[1771075748122,1.20771032,2070.1,2069.4,1.22974935]
[1771075749234,4.83055445,2070.2,2069.5,1.20802126]
[1771075749430,4.83055445,2070.2,2069.5,1.22974935]
[1771075750233,7.58759122,2070.3,2069.5,1.22974935]
[1771075750531,1.20752484,2070.4,2069.7,1.22974935]
[1771075751412,1.20752484,2070.4,2069.8,1.22974935]
[1771075751609,2.65256952,2070.5,2069.8,1.22974935]
[1771075752411,2.65256952,2070.5,2069.7,1.20790033]
[1771075752616,2.65256952,2070.5,2069.8,1.22974935]
[1771075753522,2.65256952,2070.5,2069.8,2.43757104]
[1771075754233,2.65256952,2070.5,2069.9,1.22974935]
[1771075755332,3.80101417,2070.5,2069.7,1.22974935]
[1771075755516,3.80101417,2070.5,2069.8,1.20784616]
[1771075755928,3.80101417,2070.5,2069.8,2.43759551]
[1771075756534,3.80101417,2070.5,2069.8,1.22974935]
[1771075758252,3.80101417,2070.5,2069.7,1.20786296]
[1771075758920,3.80101417,2070.5,2069.7,2.43761231]
[1771075760320,3.80101417,2070.5,2069.8,1.22974935]
[1771075760518,1.4451,2070.5,2069.8,1.22974935]
[1771075761513,0.0011,2070.5,2069.8,1.22974935]